fUST/lending_fUST_20240907
["ID","MTS","AMOUNT","RATE_DAILY","PERIOD"]
[337498672,1725719356266,-564.38582647,0.00031742,2]
[337498673,1725719356289,-163.906033,0.00032039,2]
[337498674,1725719356310,-841.084,0.00033219,35]
[337498675,1725719356330,-151.09209365,0.00034354,2]
[337498676,1725719356353,-592.79,0.0003439,3]
[337498677,1725719356376,-1130.41,0.0003439,3]
[337498678,1725719356397,-19284.23108094,0.000344,30]
[337498689,1725719431965,-483.2697055,0.00033291,2]
[337498690,1725719431976,-511.7712945,0.000344,30]
[337498691,1725719431994,-590.75,0.000344,30]
[337498697,1725719437966,-250.0,0.000333,2]
[337498698,1725719437976,-3210.72833388,0.000344,30]
[337498700,1725719438063,-2322.4827071,0.000344,30]
[337498701,1725719438073,-5000.0,0.0003442,30]
[337498702,1725719438083,-2179.84666673,0.00034423,30]
[337498703,1725719438159,-440.15333327,0.00034423,30]
[337498704,1725719438168,-1930.04,0.00034423,30]
[337498705,1725719438178,-1000.0,0.00034423,10]
[337498706,1725719438187,-350.62346841,0.00034423,2]
[337498707,1725719438196,-157.57,0.0003449,3]
[337498708,1725719438205,-7000.0,0.000345,15]
[337498709,1725719438214,-1000.0,0.00035,15]
[337498710,1725719438227,-186.8923635,0.00035616,120]
[337498711,1725719438237,-591.07,0.00036992,3]
[337498712,1725719438247,-843.49,0.00036992,3]
[337498713,1725719438256,-500.0,0.00037001,15]
[337498714,1725719438266,-500.0,0.00037001,15]
[337498715,1725719438276,-500.0,0.00037001,15]
[337498716,1725719438285,-500.0,0.00037001,15]
[337498717,1725719438295,-500.0,0.00037001,15]
[337498718,1725719438304,-500.0,0.00037001,15]
[337498719,1725719438314,-500.0,0.00037001,15]
[337498720,1725719438323,-500.0,0.00037001,15]
[337498721,1725719438333,-500.0,0.00037001,15]
[337498722,1725719438343,-500.0,0.00037001,15]
[337498723,1725719438352,-500.0,0.00037001,15]
[337498724,1725719438363,-500.0,0.00037001,15]
[337498725,1725719438372,-500.0,0.00037001,15]
[337498726,1725719438383,-500.0,0.00037001,15]
[337498727,1725719438393,-500.0,0.00037001,15]
[337498728,1725719438402,-500.0,0.00037001,15]
[337498729,1725719438412,-500.0,0.00037001,15]
[337498730,1725719438422,-500.0,0.00037001,15]
[337498731,1725719438431,-500.0,0.00037001,15]
[337498732,1725719438446,-500.0,0.00037001,15]
[337498733,1725719438455,-500.0,0.00037001,15]
[337498734,1725719438465,-500.0,0.00037001,15]
[337498735,1725719438475,-500.0,0.00037001,15]
[337498736,1725719438484,-500.0,0.00037001,15]
[337498737,1725719438494,-500.0,0.00037001,15]
[337498738,1725719438503,-500.0,0.00037001,15]
[337498739,1725719438513,-500.0,0.00037001,15]
[337498740,1725719438522,-500.0,0.00037001,15]
[337498741,1725719438532,-500.0,0.00037001,15]
[337498742,1725719438541,-385.76562926,0.00037001,15]
[337498743,1725719438552,-500.0,0.00037001,15]
[337498744,1725719438563,-500.0,0.00037001,15]
[337498745,1725719438576,-500.0,0.00037001,15]
[337498746,1725719438585,-71110.0493199,0.00037002,4]
[337498747,1725719438594,-1399.04031856,0.00037108,2]
[337498748,1725719438603,-5455.46518209,0.0003716,2]
[337498749,1725719438613,-214.27870237,0.00037207,15]
[337498750,1725719438622,-500.0,0.00037207,15]
[337498751,1725719438632,-161.56837067,0.00037207,15]
[337498752,1725719438645,-337.41606592,0.00037207,15]
[337498753,1725719438655,-500.0,0.00037207,15]
[337498754,1725719438666,-500.0,0.00037207,15]
[337498755,1725719438675,-500.0,0.00037207,15]
[337498756,1725719438689,-500.0,0.00037207,15]
[337498757,1725719438699,-500.0,0.00037207,15]
[337498758,1725719438708,-500.0,0.00037207,15]
[337498759,1725719438720,-71110.0493199,0.00037208,4]
[337498760,1725719438730,-151.0,0.00037208,14]
[337498761,1725719438741,-153.009167,0.00037208,14]
[337498762,1725719438752,-151.0,0.00037208,14]
[337498763,1725719438762,-151.0,0.00037218,14]
[337498764,1725719438772,-264.773364,0.00037218,14]
[337498765,1725719438781,-151.0,0.00037218,14]
[337498766,1725719438791,-264.773364,0.00037218,14]
[337498767,1725719438800,-151.0,0.00037218,14]
[337498768,1725719438810,-151.0,0.00037218,14]
[337498769,1725719438820,-307.125297,0.00037218,14]
[337498770,1725719438832,-307.125297,0.00037218,14]
[337498771,1725719438843,-307.125297,0.00037218,14]
[337498772,1725719438852,-307.125297,0.00037218,14]
[337498773,1725719438862,-193.016733,0.00037218,14]
[337498774,1725719438871,-193.016733,0.00037218,14]
[337498775,1725719438881,-193.016733,0.00037218,14]
[337498776,1725719438890,-193.016733,0.00037218,14]
[337498777,1725719438899,-151.0,0.00037218,14]
[337498778,1725719438909,-151.0,0.00037218,14]
[337498779,1725719438918,-217.21418,0.00037218,14]
[337498780,1725719438928,-217.21418,0.00037218,14]
[337498781,1725719438937,-217.21418,0.00037218,14]
[337498782,1725719438947,-217.21418,0.00037218,14]
[337498783,1725719438957,-277.217902,0.00037218,14]
[337498784,1725719438967,-151.0,0.00037218,14]
[337498785,1725719438978,-277.217902,0.00037218,14]
[337498786,1725719438988,-151.0,0.00037218,14]
[337498787,1725719438997,-193.422387,0.00037218,14]
[337498788,1725719439007,-277.217902,0.00037218,14]
[337498789,1725719439017,-277.217902,0.00037218,14]
[337498790,1725719439026,-151.0,0.00037218,14]
[337498791,1725719439035,-151.0,0.00037218,14]
[337498792,1725719439045,-241.580826,0.00037218,14]
[337498793,1725719439054,-241.580826,0.00037218,14]
[337498794,1725719439064,-151.0,0.00037218,14]
[337498795,1725719439074,-151.0,0.00037218,14]
[337498796,1725719439083,-241.580826,0.00037218,14]
[337498797,1725719439093,-241.580826,0.00037218,14]
[337498798,1725719439102,-151.0,0.00037218,14]
[337498799,1725719439112,-151.0,0.00037218,14]
[337498800,1725719439121,-151.0,0.00037218,14]
[337498801,1725719439132,-151.0,0.00037218,14]
[337498802,1725719439143,-151.0,0.00037218,14]
[337498803,1725719439153,-151.0,0.00037218,14]
[337498804,1725719439164,-277.5065,0.00037218,14]
[337498805,1725719439174,-151.0,0.00037218,14]
[337498806,1725719439185,-277.5065,0.00037218,14]
[337498807,1725719439195,-236.118201,0.00037218,14]
[337498808,1725719439206,-236.118201,0.00037218,14]
[337498809,1725719439216,-236.118201,0.00037218,14]
[337498810,1725719439226,-236.118201,0.00037218,14]
[337498811,1725719439238,-217.546237,0.00037218,14]
[337498812,1725719439249,-217.546237,0.00037218,14]
[337498813,1725719439260,-210.40778,0.00037218,14]
[337498814,1725719439270,-210.40778,0.00037218,14]
[337498815,1725719439280,-151.0,0.00037218,14]
[337498816,1725719439289,-151.0,0.00037218,14]
[337498817,1725719439299,-173.93698,0.00037218,14]
[337498818,1725719439309,-173.93698,0.00037218,14]
[337498819,1725719439319,-151.0,0.00037218,14]
[337498820,1725719439329,-151.0,0.00037218,14]
[337498821,1725719439342,-277.86767,0.00037218,14]
[337498822,1725719439351,-267.407128,0.00037218,14]
[337498823,1725719439362,-277.86767,0.00037218,14]
[337498824,1725719439371,-267.407128,0.00037218,14]
[337498825,1725719439380,-206.936946,0.00037218,14]
[337498826,1725719439390,-206.936946,0.00037218,14]
[337498827,1725719439400,-151.0,0.00037218,14]
[337498828,1725719439410,-71110.0493199,0.00037455,4]
[337498829,1725719439420,-151.0,0.00037455,14]
[337498830,1725719439430,-151.0,0.00037455,14]
[337498831,1725719439442,-5455.46518209,0.00037489,2]
[337498832,1725719439453,-1399.04031852,0.00037604,2]
[337498833,1725719439463,-5455.46518209,0.00037705,2]
[337498834,1725719439472,-27408.95854527,0.0003781,4]
[337498835,1725719439482,-173.93698,0.0003781,14]
[337498836,1725719439492,-173.93698,0.0003781,14]
[337498837,1725719439502,-151.0,0.0003781,14]
[337498838,1725719439512,-151.0,0.0003781,14]
[337498839,1725719439522,-277.86767,0.0003781,14]
[337498840,1725719439532,-267.407128,0.0003781,14]
[337498842,1725719439542,-277.86767,0.0003781,14]
[337498843,1725719439551,-267.407128,0.0003781,14]
[337498844,1725719439561,-206.936946,0.0003781,14]
[337498845,1725719439570,-206.936946,0.0003781,14]
[337498846,1725719439581,-151.0,0.0003781,14]
[337498847,1725719439592,-151.0,0.0003781,14]
[337498848,1725719439603,-151.0,0.0003781,14]
[337498849,1725719439613,-5455.46518209,0.00037959,2]
[337498850,1725719439626,-1000.0,0.00038,30]
[337498851,1725719439640,-151.0,0.00038147,14]
[337498852,1725719439651,-151.0,0.00038147,14]
[337498853,1725719439661,-277.5065,0.00038147,14]
[337498854,1725719439670,-151.0,0.00038147,14]
[337498855,1725719439681,-277.5065,0.00038147,14]
[337498856,1725719439691,-217.546237,0.00038147,14]
[337498857,1725719439701,-217.546237,0.00038147,14]
[337498858,1725719439710,-210.40778,0.00038147,14]
[337498859,1725719439722,-210.40778,0.00038147,14]
[337498860,1725719439732,-151.0,0.00038147,14]
[337498861,1725719439742,-151.0,0.00038147,14]
[337498862,1725719439751,-151.0,0.00038225,14]
[337498863,1725719439761,-151.0,0.00038225,14]
[337498864,1725719439770,-71110.0493199,0.00038225,4]
[337498865,1725719439780,-5455.46518213,0.00038243,2]
[337498866,1725719439789,-151.0,0.00038289,14]
[337498867,1725719439799,-241.580826,0.00038289,14]
[337498868,1725719439809,-241.580826,0.00038289,14]
[337498869,1725719439821,-151.0,0.00038289,14]
[337498870,1725719439831,-500.0,0.00038378,5]
[337498871,1725719439841,-250.0,0.00038378,5]
[337498872,1725719439850,-872.26339868,0.00038399,60]
[337498873,1725719439861,-151.0,0.0003845,14]
[337498874,1725719439870,-189.879878,0.0003845,14]
[337498875,1725719439880,-151.0,0.0003845,14]
[337498876,1725719439889,-152.200835,0.0003845,14]
[337498877,1725719439899,-369.185038,0.0003845,3]
[337498878,1725719439908,-369.185038,0.0003845,3]
[337498879,1725719439918,-151.0,0.0003845,14]
[337498881,1725719439927,-151.0,0.0003845,14]
[337498883,1725719439936,-151.0,0.0003845,14]
[337498885,1725719439946,-483.157182,0.0003845,14]
[337498887,1725719439956,-151.0,0.0003845,14]
[337498889,1725719439965,-151.0,0.0003845,14]
[337498891,1725719439974,-483.157182,0.0003845,14]
[337498893,1725719439983,-317.296391,0.0003845,14]
[337498895,1725719439993,-317.296391,0.0003845,14]
[337498897,1725719440003,-187.077189,0.0003845,14]
[337498899,1725719440012,-237.591068,0.0003845,14]
[337498901,1725719440022,-187.077189,0.0003845,14]
[337498903,1725719440031,-237.591068,0.0003845,14]
[337498905,1725719440040,-264.773364,0.0003845,14]
[337498907,1725719440050,-264.773364,0.0003845,14]
[337498909,1725719440060,-151.0,0.0003845,14]
[337498911,1725719440071,-264.773364,0.0003845,14]
[337498913,1725719440081,-264.773364,0.0003845,14]
[337498915,1725719440091,-151.0,0.0003845,14]
[337498918,1725719440101,-162.650517,0.0003845,14]
[337498920,1725719440110,-151.0,0.0003845,14]
[337498922,1725719440120,-151.0,0.0003845,14]
[337498924,1725719440130,-307.125297,0.0003845,14]
[337498926,1725719440139,-307.125297,0.0003845,14]
[337498928,1725719440148,-307.125297,0.0003845,14]
[337498930,1725719440158,-307.125297,0.0003845,14]
[337498932,1725719440167,-193.016733,0.0003845,14]
[337498934,1725719440177,-193.016733,0.0003845,14]
[337498936,1725719440186,-193.016733,0.0003845,14]
[337498938,1725719440195,-193.016733,0.0003845,14]
[337498940,1725719440205,-151.0,0.0003845,14]
[337498960,1725719440341,-151.0,0.0003845,14]
[337498962,1725719440351,-217.21418,0.0003845,14]
[337498964,1725719440360,-217.21418,0.0003845,14]
[337498966,1725719440371,-217.21418,0.0003845,14]
[337498968,1725719440381,-217.21418,0.0003845,14]
[337498970,1725719440391,-151.0,0.0003845,14]
[337498972,1725719440403,-277.217902,0.0003845,14]
[337498974,1725719440414,-151.0,0.0003845,14]
[337498976,1725719440425,-277.217902,0.0003845,14]
[337498978,1725719440435,-277.217902,0.0003845,14]
[337498980,1725719440445,-277.217902,0.0003845,14]
[337498983,1725719440455,-151.0,0.0003845,14]
[337498985,1725719440465,-151.0,0.0003845,14]
[337498987,1725719440476,-241.580826,0.0003845,14]
[337498989,1725719440485,-241.580826,0.0003845,14]
[337498991,1725719440495,-241.580826,0.0003845,14]
[337498993,1725719440505,-241.580826,0.0003845,14]
[337498995,1725719440515,-151.0,0.0003845,14]
[337498997,1725719440524,-151.0,0.0003845,14]
[337498999,1725719440533,-241.289224,0.0003845,14]
[337499001,1725719440543,-151.0,0.0003845,14]
[337499003,1725719440553,-299.146691,0.0003845,14]
[337499005,1725719440563,-151.0,0.0003845,14]
[337499007,1725719440572,-151.0,0.0003845,14]
[337499009,1725719440582,-277.5065,0.0003845,14]
[337499011,1725719440592,-277.5065,0.0003845,14]
[337499013,1725719440601,-206.382838,0.0003845,14]
[337499015,1725719440611,-277.5065,0.0003845,14]
[337499017,1725719440621,-277.5065,0.0003845,14]
[337499019,1725719440630,-236.118201,0.0003845,14]
[337499021,1725719440644,-236.118201,0.0003845,14]
[337499023,1725719440655,-236.118201,0.0003845,14]
[337499025,1725719440664,-236.118201,0.0003845,14]
[337499027,1725719440674,-217.546237,0.0003845,14]
[337499029,1725719440685,-217.546237,0.0003845,14]
[337499031,1725719440695,-217.546237,0.0003845,14]
[337499034,1725719440705,-217.546237,0.0003845,14]
[337499036,1725719440716,-210.40778,0.0003845,14]
[337499038,1725719440726,-210.40778,0.0003845,14]
[337499039,1725719440736,-210.40778,0.0003845,14]
[337499041,1725719440746,-210.40778,0.0003845,14]
[337499044,1725719440756,-151.0,0.0003845,14]
[337499046,1725719440765,-151.0,0.0003845,14]
[337499048,1725719440775,-151.0,0.0003845,14]
[337499050,1725719440784,-151.0,0.0003845,14]
[337499052,1725719440794,-173.93698,0.0003845,14]
[337499054,1725719440804,-173.93698,0.0003845,14]
[337499056,1725719440815,-173.93698,0.0003845,14]
[337499058,1725719440825,-173.93698,0.0003845,14]
[337499060,1725719440841,-151.0,0.0003845,14]
[337499062,1725719440850,-151.0,0.0003845,14]
[337499064,1725719440859,-272.791932,0.0003845,14]
[337499066,1725719440869,-277.86767,0.0003845,14]
[337499068,1725719440879,-277.86767,0.0003845,14]
[337499070,1725719440890,-267.407128,0.0003845,14]
[337499072,1725719440899,-277.86767,0.0003845,14]
[337499074,1725719440909,-267.407128,0.0003845,14]
[337499076,1725719440919,-277.86767,0.0003845,14]
[337499078,1725719440929,-267.407128,0.0003845,14]
[337499080,1725719440939,-267.407128,0.0003845,14]
[337499082,1725719440948,-206.936946,0.0003845,14]
[337499084,1725719440958,-206.936946,0.0003845,14]
[337499086,1725719440968,-206.936946,0.0003845,14]
[337499088,1725719440977,-206.936946,0.0003845,14]
[337499090,1725719440987,-151.0,0.0003845,14]
[337499092,1725719440996,-151.0,0.0003845,14]
[337499094,1725719441005,-19677.70332277,0.0003846,4]
[337499096,1725719441015,-173.93698,0.0003846,14]
[337499098,1725719441024,-173.93698,0.0003846,14]
[337499100,1725719441034,-151.0,0.0003846,14]
[337499102,1725719441044,-277.86767,0.0003846,14]
[337499104,1725719441054,-267.407128,0.0003846,14]
[337499106,1725719441063,-277.86767,0.0003846,14]
[337499108,1725719441073,-267.407128,0.0003846,14]
[337499110,1725719441084,-206.936946,0.0003846,14]
[337499112,1725719441095,-206.936946,0.0003846,14]
[337499115,1725719441104,-185.935133,0.0003846,14]
[337499117,1725719441116,-151.0,0.0003846,14]
[337499119,1725719441125,-151.0,0.0003846,14]
[337499121,1725719441134,-153.0,0.00038466,2]
[337499123,1725719441144,-153.0,0.00038466,2]
[337499125,1725719441155,-153.0,0.00038466,2]
[337499126,1725719441164,-153.0,0.00038466,2]
[337499128,1725719441174,-153.0,0.00038466,2]
[337499130,1725719441184,-153.0,0.00038466,2]
[337499132,1725719441193,-151.0,0.0003848,14]
[337499134,1725719441203,-241.580826,0.0003848,14]
[337499135,1725719441213,-241.580826,0.0003848,14]
[337499136,1725719441222,-151.0,0.0003848,14]
[337499137,1725719441232,-277.5065,0.0003848,14]
[337499138,1725719441242,-277.5065,0.0003848,14]
[337499139,1725719441251,-217.546237,0.0003848,14]
[337499140,1725719441261,-217.546237,0.0003848,14]
[337499141,1725719441271,-210.40778,0.0003848,14]
[337499142,1725719441280,-210.40778,0.0003848,14]
[337499143,1725719441290,-151.0,0.0003848,14]
[337499144,1725719441301,-151.0,0.0003848,14]
[337499145,1725719441311,-173.93698,0.0003848,14]
[337499146,1725719441320,-173.93698,0.0003848,14]
[337499147,1725719441330,-151.0,0.0003848,14]
[337499148,1725719441339,-277.86767,0.0003848,14]
[337499149,1725719441349,-267.407128,0.0003848,14]
[337499150,1725719441359,-277.86767,0.0003848,14]
[337499151,1725719441368,-267.407128,0.0003848,14]
[337499152,1725719441378,-206.936946,0.0003848,14]
[337499153,1725719441387,-206.936946,0.0003848,14]
[337499154,1725719441397,-151.0,0.0003848,14]
[337499155,1725719441406,-154.556085,0.0003848,14]
[337499156,1725719441416,-88888.0,0.0003848,60]
[337499157,1725719441425,-1375.79153661,0.0003849,2]
[337499158,1725719441435,-5000.0,0.000385,30]
[337499159,1725719441445,-187.0,0.00038573,5]
[337499160,1725719441454,-160.06671283,0.00038573,5]
[337499161,1725719441464,-198.51566222,0.00038573,5]
[337499162,1725719441473,-151.0,0.0003858,14]
[337499163,1725719441483,-151.0,0.0003858,14]
[337499164,1725719441492,-157.477846,0.0003858,14]
[337499165,1725719441503,-151.0,0.0003858,14]
[337499166,1725719441512,-157.477846,0.0003858,14]
[337499167,1725719441521,-151.0,0.0003858,14]
[337499168,1725719441530,-151.0,0.0003858,14]
[337499169,1725719441540,-151.0,0.0003858,14]
[337499170,1725719441549,-369.185038,0.0003858,3]
[337499171,1725719441559,-369.185038,0.0003858,3]
[337499172,1725719441569,-151.0,0.0003858,14]
[337499173,1725719441578,-151.0,0.0003858,14]
[337499174,1725719441587,-152.836785,0.0003858,14]
[337499175,1725719441597,-483.157182,0.0003858,14]
[337499176,1725719441607,-483.157182,0.0003858,14]
[337499177,1725719441617,-317.296391,0.0003858,14]
[337499178,1725719441626,-317.296391,0.0003858,14]
[337499179,1725719441636,-187.077189,0.0003858,14]
[337499180,1725719441649,-237.591068,0.0003858,14]
[337499181,1725719441659,-187.077189,0.0003858,14]
[337499182,1725719441668,-237.591068,0.0003858,14]
[337499183,1725719441678,-307.125297,0.0003858,14]
[337499184,1725719441687,-307.125297,0.0003858,14]
[337499185,1725719441698,-193.016733,0.0003858,14]
[337499186,1725719441709,-193.016733,0.0003858,14]
[337499187,1725719441720,-217.21418,0.0003858,14]
[337499188,1725719441731,-217.21418,0.0003858,14]
[337499189,1725719441742,-151.0,0.0003858,14]
[337499190,1725719441753,-277.217902,0.0003858,14]
[337499191,1725719441763,-277.217902,0.0003858,14]
[337499192,1725719441772,-151.0,0.0003858,14]
[337499193,1725719441784,-236.118201,0.0003858,14]
[337499194,1725719441793,-236.118201,0.0003858,14]
[337499195,1725719441803,-151.0,0.0003859,14]
[337499196,1725719441813,-204.111227,0.0003859,14]
[337499197,1725719441823,-151.0,0.0003859,14]
[337499198,1725719441835,-151.805817,0.0003859,14]
[337499199,1725719441845,-151.0,0.0003859,14]
[337499200,1725719441855,-151.0,0.0003859,14]
[337499201,1725719441865,-151.0,0.0003859,14]
[337499202,1725719441875,-151.0,0.0003859,14]
[337499203,1725719441884,-151.0,0.0003859,14]
[337499204,1725719441893,-157.477846,0.0003859,14]
[337499205,1725719441902,-151.0,0.0003859,14]
[337499206,1725719441913,-157.477846,0.0003859,14]
[337499207,1725719441923,-151.0,0.0003859,14]
[337499208,1725719441934,-151.0,0.0003859,14]
[337499209,1725719441945,-151.0,0.0003859,14]
[337499210,1725719441956,-369.185038,0.0003859,3]
[337499211,1725719441966,-369.185038,0.0003859,3]
[337499212,1725719441976,-151.0,0.0003859,14]
[337499213,1725719441986,-151.0,0.0003859,14]
[337499214,1725719441996,-483.157182,0.0003859,14]
[337499215,1725719442007,-151.0,0.0003859,14]
[337499216,1725719442017,-151.0,0.0003859,14]
[337499217,1725719442027,-151.0,0.0003859,14]
[337499218,1725719442037,-483.157182,0.0003859,14]
[337499219,1725719442047,-317.296391,0.0003859,14]
[337499220,1725719442056,-317.296391,0.0003859,14]
[337499221,1725719442066,-187.077189,0.0003859,14]
[337499222,1725719442076,-237.591068,0.0003859,14]
[337499223,1725719442086,-237.591068,0.0003859,14]
[337499224,1725719442097,-187.077189,0.0003859,14]
[337499225,1725719442106,-264.773364,0.0003859,14]
[337499226,1725719442116,-151.0,0.0003859,14]
[337499227,1725719442126,-264.773364,0.0003859,14]
[337499228,1725719442136,-151.0,0.0003859,14]
[337499229,1725719442146,-264.773364,0.0003859,14]
[337499230,1725719442156,-264.773364,0.0003859,14]
[337499231,1725719442167,-151.0,0.0003859,14]
[337499232,1725719442177,-264.773364,0.0003859,14]
[337499233,1725719442186,-151.0,0.0003859,14]
[337499234,1725719442196,-264.773364,0.0003859,14]
[337499235,1725719442205,-151.0,0.0003859,14]
[337499236,1725719442219,-151.0,0.0003859,14]
[337499237,1725719442229,-151.0,0.0003859,14]
[337499238,1725719442239,-151.0,0.0003859,14]
[337499239,1725719442249,-307.125297,0.0003859,14]
[337499240,1725719442259,-307.125297,0.0003859,14]
[337499241,1725719442268,-307.125297,0.0003859,14]
[337499242,1725719442278,-307.125297,0.0003859,14]
[337499243,1725719442287,-193.016733,0.0003859,14]
[337499244,1725719442297,-193.016733,0.0003859,14]
[337499245,1725719442307,-193.016733,0.0003859,14]
[337499246,1725719442318,-193.016733,0.0003859,14]
[337499247,1725719442328,-217.21418,0.0003859,14]
[337499248,1725719442337,-217.21418,0.0003859,14]
[337499249,1725719442348,-217.21418,0.0003859,14]
[337499250,1725719442358,-217.21418,0.0003859,14]
[337499251,1725719442368,-151.0,0.0003859,14]
[337499252,1725719442378,-151.0,0.0003859,14]
[337499253,1725719442388,-277.217902,0.0003859,14]
[337499254,1725719442398,-277.217902,0.0003859,14]
[337499255,1725719442408,-277.217902,0.0003859,14]
[337499256,1725719442418,-277.217902,0.0003859,14]
[337499257,1725719442430,-151.0,0.0003859,14]
[337499258,1725719442440,-151.0,0.0003859,14]
[337499259,1725719442450,-241.580826,0.0003859,14]
[337499260,1725719442459,-241.580826,0.0003859,14]
[337499261,1725719442469,-241.580826,0.0003859,14]
[337499262,1725719442479,-241.580826,0.0003859,14]
[337499264,1725719442488,-151.0,0.0003859,14]
[337499265,1725719442498,-151.0,0.0003859,14]
[337499266,1725719442508,-151.0,0.0003859,14]
[337499267,1725719442518,-151.0,0.0003859,14]
[337499268,1725719442528,-277.5065,0.0003859,14]
[337499269,1725719442538,-277.5065,0.0003859,14]
[337499270,1725719442547,-277.5065,0.0003859,14]
[337499271,1725719442557,-277.5065,0.0003859,14]
[337499272,1725719442567,-236.118201,0.0003859,14]
[337499273,1725719442577,-236.118201,0.0003859,14]
[337499274,1725719442586,-236.118201,0.0003859,14]
[337499276,1725719442596,-236.118201,0.0003859,14]
[337499277,1725719442605,-217.546237,0.0003859,14]
[337499278,1725719442614,-217.546237,0.0003859,14]
[337499279,1725719442624,-217.546237,0.0003859,14]
[337499280,1725719442634,-217.546237,0.0003859,14]
[337499281,1725719442646,-210.40778,0.0003859,14]
[337499282,1725719442656,-210.40778,0.0003859,14]
[337499283,1725719442666,-210.40778,0.0003859,14]
[337499284,1725719442675,-210.40778,0.0003859,14]
[337499285,1725719442685,-151.0,0.0003859,14]
[337499286,1725719442694,-151.0,0.0003859,14]
[337499287,1725719442703,-203.834478,0.0003859,14]
[337499288,1725719442713,-173.93698,0.0003859,14]
[337499289,1725719442724,-173.93698,0.0003859,14]
[337499290,1725719442734,-173.93698,0.0003859,14]
[337499291,1725719442744,-173.93698,0.0003859,14]
[337499292,1725719442754,-151.0,0.0003859,14]
[337499293,1725719442765,-151.0,0.0003859,14]
[337499294,1725719442774,-277.86767,0.0003859,14]
[337499295,1725719442784,-277.86767,0.0003859,14]
[337499296,1725719442794,-267.407128,0.0003859,14]
[337499297,1725719442804,-267.407128,0.0003859,14]
[337499298,1725719442814,-277.86767,0.0003859,14]
[337499299,1725719442825,-277.86767,0.0003859,14]
[337499300,1725719442836,-267.407128,0.0003859,14]
[337499301,1725719442846,-267.407128,0.0003859,14]
[337499302,1725719442855,-206.936946,0.0003859,14]
[337499303,1725719442865,-206.936946,0.0003859,14]
[337499304,1725719442875,-206.936946,0.0003859,14]
[337499305,1725719442884,-206.936946,0.0003859,14]
[337499306,1725719442894,-205.028237,0.0003859,14]
[337499307,1725719442904,-96520.13587132,0.000386,15]
[337499308,1725719442914,-514.13562826,0.000386,120]
[337499309,1725719442924,-151.0,0.000386,14]
[337499310,1725719442934,-151.0,0.000386,14]
[337499311,1725719442944,-151.0,0.000386,14]
[337499312,1725719442954,-151.0,0.000386,14]
[337499313,1725719442964,-151.0,0.000386,14]
[337499314,1725719442975,-151.0,0.000386,14]
[337499315,1725719442986,-176.410838,0.000386,14]
[337499316,1725719442995,-157.477846,0.000386,14]
[337499317,1725719443005,-151.0,0.000386,14]
[337499318,1725719443016,-157.477846,0.000386,14]
[337499319,1725719443029,-151.0,0.000386,14]
[337499320,1725719443039,-151.0,0.000386,14]
[337499321,1725719443050,-151.0,0.000386,14]
[337499322,1725719443061,-369.185038,0.000386,3]
[337499323,1725719443070,-369.185038,0.000386,3]
[337499324,1725719443081,-151.0,0.000386,14]
[337499325,1725719443091,-483.157182,0.000386,14]
[337499326,1725719443101,-151.0,0.000386,14]
[337499327,1725719443111,-483.157182,0.000386,14]
[337499328,1725719443120,-317.296391,0.000386,14]